bitfinex/quotes_BTCUSD_20250422
["timestamp","ask_amount","ask_price","bid_price","bid_amount"]
[1745343523290,0.11375594,91294.0,91290.0,0.0109541]
[1745343523548,0.1,91282.0,91281.0,0.0004617]
[1745343523674,0.21361184,91282.0,91281.0,0.0004617]
[1745343523874,0.43285718,91282.0,91281.0,0.0004617]
[1745343525344,0.44839803,91282.0,91281.0,0.0004617]
[1745343525552,0.78839803,91282.0,91281.0,0.0004617]
[1745343525765,1.00515008,91282.0,91281.0,0.0004617]
[1745343525964,0.53585718,91282.0,91281.0,0.0004617]
[1745343526165,0.21675594,91282.0,91281.0,0.0004617]
[1745343526506,0.21475594,91282.0,91281.0,0.0004617]
[1745343526711,0.21975594,91282.0,91281.0,0.0004617]
[1745343526908,0.21475594,91282.0,91281.0,0.0004617]
[1745343528816,0.21575594,91282.0,91281.0,0.0004617]
[1745343529117,0.21475594,91282.0,91281.0,0.0004617]
[1745343529542,0.21575594,91282.0,91281.0,0.0004617]
[1745343530116,0.11575594,91282.0,91281.0,0.0004617]
[1745343530722,0.102,91282.0,91281.0,0.0004617]
[1745343531125,0.21575594,91282.0,91281.0,0.0004617]
[1745343531546,0.43485718,91282.0,91281.0,0.0004617]
[1745343531749,0.77485718,91282.0,91281.0,0.0004617]
[1745343532515,0.01095854,91253.0,91238.0,0.21920611]
[1745343532716,0.11375594,91252.0,91244.0,0.01095962]
[1745343532913,0.11375594,91252.0,91242.0,0.23015505]
[1745343532914,0.22211777,91252.0,91242.0,0.23015505]
[1745343533117,0.22211777,91252.0,91244.0,0.0008478]
[1745343533545,0.22211777,91252.0,91246.0,0.01095938]
[1745343533740,0.1,91252.0,91250.0,0.21917624]
[1745343534013,0.001,91253.0,91252.0,0.21917327]
[1745343534350,0.00046018,91253.0,91252.0,0.21917327]
[1745343534553,0.00046018,91253.0,91252.0,0.22017327]
[1745343535203,0.00046018,91253.0,91252.0,0.26957327]
[1745343535974,0.00046018,91253.0,91252.0,0.27257327]
[1745343536178,0.00046018,91253.0,91252.0,0.27357327]
[1745343536884,0.00046018,91253.0,91252.0,0.27757327]
[1745343538986,0.00046018,91253.0,91252.0,0.04706257]
[1745343539155,0.00046018,91253.0,91252.0,0.26842725]
[1745343539352,0.00046018,91253.0,91252.0,0.26623584]
[1745343539681,0.00046018,91253.0,91252.0,0.31233584]
[1745343540234,0.001,91282.0,91279.0,0.21910844]
[1745343540443,0.101,91282.0,91281.0,0.21910364]
[1745343540836,0.101,91282.0,91266.0,0.21913895]
[1745343540837,0.21575594,91282.0,91266.0,0.21913895]
[1745343541037,0.08895659,91276.0,91266.0,0.01095698]
[1745343541182,0.08895659,91276.0,91267.0,0.21913693]
[1745343541183,0.1,91268.0,91267.0,0.21913693]
[1745343541382,0.11375594,91275.0,91267.0,0.21913693]
[1745343541585,0.1,91268.0,91266.0,0.01095698]
[1745343541787,0.11375594,91275.0,91266.0,0.23009649]
[1745343541991,4.599e-05,91268.0,91266.0,0.23009649]
[1745343542189,0.10004599,91268.0,91266.0,0.001]
[1745343542393,0.1,91264.0,91254.0,0.01095842]
[1745343542593,0.11375594,91263.0,91259.0,0.01095782]
[1745343542795,0.11375594,91263.0,91257.0,0.01095806]
[1745343542796,0.21375594,91263.0,91258.0,0.01095794]
[1745343543025,4.599e-05,91268.0,91267.0,0.21913725]
[1745343545209,4.599e-05,91268.0,91267.0,0.22213725]
[1745343545415,4.599e-05,91268.0,91267.0,0.22413725]
[1745343545862,4.599e-05,91268.0,91267.0,0.008]
[1745343546033,4.599e-05,91268.0,91267.0,0.005]
[1745343546433,4.599e-05,91268.0,91267.0,0.003]
[1745343546635,0.11380193,91268.0,91267.0,0.003]
[1745343546838,0.21380193,91268.0,91267.0,0.006]
[1745343547668,0.21380193,91268.0,91260.0,0.23011117]
[1745343547843,0.1,91262.0,91261.0,0.01095758]
[1745343548039,0.25193365,91262.0,91230.0,0.0008478]
[1745343548283,0.21918241,91250.0,91244.0,0.0008478]
[1745343548443,0.52529424,91249.0,91244.0,0.0008478]
[1745343548643,0.1,91248.0,91244.0,0.0008478]
[1745343548847,0.11375594,91247.0,91244.0,0.0008478]
[1745343549044,0.21375594,91247.0,91244.0,0.0008478]
[1745343549272,0.21375594,91247.0,91245.0,0.0048478]
[1745343549472,0.21375594,91247.0,91245.0,0.0008478]
[1745343550025,0.21575594,91247.0,91245.0,0.0008478]
[1745343550651,0.21575594,91247.0,91245.0,0.22003711]
[1745343551255,0.104,91247.0,91245.0,0.22003711]
[1745343551550,0.008,91247.0,91246.0,0.0465]
[1745343551747,0.008,91247.0,91246.0,0.04869159]
[1745343552268,0.004,91247.0,91246.0,0.0465]
[1745343552461,0.11204,91271.0,91264.0,0.21914446]
[1745343552657,0.11375594,91267.0,91265.0,0.21913996]
[1745343553531,0.11375594,91267.0,91265.0,0.21413996]
[1745343554283,0.11575594,91267.0,91265.0,0.21413996]
[1745343554855,0.11575594,91267.0,91265.0,0.21914105]
[1745343555152,0.11775594,91267.0,91265.0,0.21914105]
[1745343556927,0.11775594,91267.0,91263.0,0.23009902]
[1745343557130,0.11775594,91267.0,91264.0,0.21914386]
[1745343557333,0.11775594,91267.0,91253.0,0.01095854]
[1745343557334,0.1,91258.0,91253.0,0.01095854]
[1745343557535,0.1,91258.0,91257.0,0.21916126]
[1745343557737,0.1,91258.0,91256.0,0.21916367]
[1745343557937,0.1,91258.0,91257.0,0.21916126]
[1745343558170,0.1,91258.0,91256.0,0.21916367]
[1745343558503,0.1,91258.0,91257.0,0.21916126]
[1745343558951,0.1,91258.0,91256.0,0.21916367]
[1745343559780,0.1,91258.0,91256.0,0.21916262]
[1745343560277,0.1,91258.0,91257.0,0.21916126]
[1745343560439,0.1,91258.0,91256.0,0.21916367]
[1745343560637,0.1,91258.0,91248.0,0.80236843]
[1745343560865,0.1,91258.0,91255.0,0.0109583]
[1745343561565,0.1,91258.0,91256.0,0.21916351]
[1745343561902,0.1,91258.0,91255.0,0.23012254]
[1745343562082,0.1,91258.0,91256.0,0.21916312]
[1745343562409,0.1,91258.0,91257.0,0.21916126]
[1745343562581,0.1,91258.0,91256.0,0.21916312]
[1745343562785,0.1,91258.0,91257.0,0.21916126]
[1745343564230,0.1,91258.0,91256.0,0.21916312]
[1745343564387,0.1,91258.0,91257.0,0.21916126]
[1745343565310,0.1,91258.0,91256.0,0.21916138]
[1745343565518,0.1,91258.0,91257.0,0.21916126]
[1745343565702,0.1,91258.0,91253.0,0.01095854]
[1745343565955,0.1,91258.0,91254.0,0.01095842]
[1745343566136,0.1,91258.0,91250.0,0.0109589]
[1745343566341,0.1,91258.0,91249.0,0.21917959]
[1745343566543,0.1,91258.0,91255.0,0.0109583]
[1745343566722,0.1,91258.0,91257.0,0.21916126]
[1745343567339,0.1,91267.0,91266.0,0.21913965]
[1745343568159,0.1,91267.0,91266.0,0.23127063]
[1745343568364,0.103,91267.0,91266.0,0.23127063]
[1745343568949,0.1,91267.0,91266.0,0.23127063]
[1745343569820,0.101,91267.0,91266.0,0.35956742]
[1745343569963,0.001,91267.0,91266.0,0.35956742]
[1745343570364,0.001,91267.0,91266.0,0.23127063]
[1745343570566,4.599e-05,91268.0,91267.0,0.21913725]
[1745343571937,4.599e-05,91268.0,91267.0,0.22513725]
[1745343572085,0.00204599,91268.0,91267.0,0.22513725]
[1745343572308,0.00204599,91268.0,91267.0,0.21913725]
[1745343572716,0.00204599,91268.0,91262.0,0.21914862]
[1745343572920,0.11375594,91267.0,91257.0,0.01095806]
[1745343573102,0.1,91263.0,91260.0,0.21915373]
[1745343573308,0.1,91262.0,91258.0,0.21915767]
[1745343573546,0.1,91264.0,91259.0,0.2191547]
[1745343573745,0.1,91263.0,91261.0,0.21915055]
[1745343573941,0.1,91263.0,91262.0,0.21914926]
[1745343574165,0.097,91263.0,91262.0,0.21914926]
[1745343574378,0.1,91263.0,91262.0,0.21414926]
[1745343574637,0.1,91263.0,91257.0,0.01095806]
[1745343574638,0.21375594,91263.0,91257.0,0.23011851]
[1745343574811,0.11375594,91262.0,91260.0,0.21915263]
[1745343575014,0.11375594,91262.0,91259.0,0.21915578]
[1745343575173,0.11375594,91262.0,91261.0,0.21915166]
[1745343575582,0.001,91263.0,91262.0,0.21914926]
[1745343575788,0.101,91263.0,91262.0,0.21914926]
[1745343576503,0.1,91263.0,91262.0,0.21914926]
[1745343577695,0.103,91263.0,91262.0,0.21914926]
[1745343578319,0.105,91263.0,91262.0,0.21914926]
[1745343582200,0.107,91263.0,91262.0,0.21914926]
[1745343594051,0.107,91263.0,91258.0,0.01095794]
[1745343594052,0.22075594,91263.0,91253.0,0.01095854]
[1745343594253,0.11375594,91262.0,91258.0,0.21915829]
[1745343594463,0.11375594,91262.0,91260.0,0.21915352]
[1745343594658,0.11375594,91262.0,91261.0,0.21915166]
[1745343595249,0.11375594,91262.0,91260.0,0.21915352]
[1745343595446,0.11375594,91262.0,91261.0,0.21915166]
[1745343596737,0.11475594,91262.0,91261.0,0.21915166]
[1745343596981,0.002,91263.0,91262.0,0.21914926]
[1745343597200,0.102,91263.0,91262.0,0.21914926]
[1745343597990,0.103,91263.0,91262.0,0.21914926]
[1745343598232,0.103,91263.0,91262.0,0.23122393]
[1745343598638,0.103,91263.0,91258.0,0.2191578]
[1745343598837,0.11375594,91262.0,91250.0,0.0109589]
[1745343599031,0.11375594,91262.0,91252.0,0.01095866]
[1745343599238,0.11375594,91262.0,91253.0,0.01095854]
[1745343599476,0.11375594,91262.0,91255.0,0.0109583]
[1745343599873,0.11375594,91262.0,91258.0,0.21915859]
[1745343600036,0.11375594,91262.0,91261.0,0.21915166]
[1745343600210,0.11375594,91262.0,91259.0,0.01095782]
[1745343600211,0.11375594,91262.0,91258.0,0.21915862]
[1745343600604,0.11375594,91262.0,91256.0,0.21916131]
[1745343600808,0.11375594,91262.0,91259.0,0.21915573]
[1745343601314,0.11375594,91262.0,91260.0,0.21915384]
[1745343601509,0.11375594,91262.0,91254.0,0.21916641]
[1745343601664,0.11375594,91262.0,91234.0,0.0008462]
[1745343601665,0.01095758,91261.0,91234.0,0.0008462]
[1745343601864,0.1,91255.0,91244.0,0.01180742]
[1745343602094,0.21375594,91254.0,91244.0,0.0008478]
[1745343602437,0.0477,91253.0,91244.0,0.0008478]
[1745343602636,0.34388807,91252.0,91244.0,0.0008478]
[1745343602837,0.21375594,91252.0,91244.0,0.0008478]
[1745343603289,0.2247146,91252.0,91244.0,0.0008478]
[1745343603844,0.21375594,91252.0,91244.0,0.0008478]
[1745343604054,0.21575594,91252.0,91244.0,0.0008478]
[1745343604395,0.21775594,91252.0,91244.0,0.22003992]
[1745343604764,0.21775594,91252.0,91251.0,0.21917568]
[1745343606148,0.21575594,91252.0,91251.0,0.21917568]
[1745343606347,0.21375594,91252.0,91251.0,0.21917568]
[1745343606669,0.22175594,91252.0,91251.0,0.21917568]
[1745343607952,0.108,91252.0,91251.0,0.21917568]
[1745343609220,0.104,91252.0,91251.0,0.21917568]
[1745343609429,0.102,91252.0,91251.0,0.21917568]
[1745343609634,0.105,91252.0,91251.0,0.21917568]
[1745343610261,0.102,91252.0,91251.0,0.21917568]
[1745343610702,0.103,91252.0,91251.0,0.21917568]
[1745343612238,0.105,91252.0,91251.0,0.21917568]
[1745343613693,0.21875594,91252.0,91250.0,0.21917755]
[1745343613904,0.21375594,91251.0,91250.0,0.21917755]
[1745343614149,0.21375594,91251.0,91247.0,0.01095926]
[1745343614319,0.21375594,91251.0,91246.0,0.01095938]
[1745343614622,0.21375594,91251.0,91245.0,0.0008478]
[1745343614830,0.21375594,91251.0,91247.0,0.01095926]
[1745343615085,0.21375594,91251.0,91245.0,0.0008478]
[1745343615854,0.21575594,91251.0,91248.0,0.01095914]
[1745343616025,0.102,91251.0,91250.0,0.21917808]
[1745343616225,0.1,91251.0,91250.0,0.21917808]
[1745343617007,0.101,91251.0,91250.0,0.21917808]
[1745343617207,0.1,91251.0,91250.0,0.21917808]
[1745343617642,0.1,91251.0,91249.0,0.21917971]
[1745343617844,0.1,91251.0,91250.0,0.21917808]
[1745343618475,0.1,91251.0,91249.0,0.21917971]
[1745343618713,0.1,91251.0,91250.0,0.21917808]
[1745343618714,0.102,91251.0,91250.0,0.21917808]
[1745343618946,0.103,91251.0,91250.0,0.21917808]
[1745343619257,0.103,91251.0,91247.0,0.21918511]
[1745343619258,0.21575594,91251.0,91247.0,0.21918511]
[1745343619462,0.11375594,91250.0,91245.0,0.22003686]
[1745343619716,0.11375594,91250.0,91245.0,0.0008478]
[1745343620529,0.05660457,91249.0,91245.0,0.0008478]
[1745343620727,0.11375594,91248.0,91245.0,0.0008478]
[1745343621161,0.21375594,91248.0,91245.0,0.0008478]
[1745343621570,0.22578777,91248.0,91245.0,0.0008478]
[1745343622892,0.21575594,91248.0,91245.0,0.0008478]
[1745343623878,0.21775594,91248.0,91245.0,0.0008478]
[1745343624103,0.21775594,91248.0,91245.0,0.2309956]
[1745343624260,0.21775594,91248.0,91245.0,0.0118073]
[1745343624466,0.21775594,91248.0,91247.0,0.21918528]
[1745343625073,0.104,91248.0,91247.0,0.21918528]
[1745343625444,0.102,91248.0,91247.0,0.21918528]
[1745343625582,0.004,91248.0,91247.0,0.21918528]
[1745343625765,0.11575594,91248.0,91245.0,0.0008478]
[1745343625970,0.11375594,91247.0,91245.0,0.0008478]
[1745343627833,0.12184365,91247.0,91245.0,0.0008478]
[1745343628187,0.12184365,91247.0,91245.0,0.0018478]
[1745343629818,0.12184365,91247.0,91246.0,0.21918769]
[1745343630223,0.12184365,91247.0,91245.0,0.0018478]
[1745343630983,0.12384365,91247.0,91245.0,0.0008478]
[1745343631983,0.12384365,91247.0,91245.0,0.0018478]
[1745343632214,0.12384365,91247.0,91246.0,0.21918769]
[1745343632441,0.12384365,91247.0,91245.0,0.0018478]
[1745343632651,0.12384365,91247.0,91246.0,0.21918769]
[1745343635829,0.01008771,91247.0,91246.0,0.21918769]
[1745343636892,0.12384365,91247.0,91246.0,0.21918769]
[1745343637889,0.12384365,91247.0,91245.0,0.0008478]
[1745343638099,0.11375594,91246.0,91245.0,0.0008478]
[1745343638413,0.52575594,91246.0,91245.0,0.0008478]
[1745343638974,0.59218486,91246.0,91245.0,0.0018478]
[1745343639192,0.55919009,91245.0,91244.0,0.0006956]
[1745343639395,1.20044603,91245.0,91244.0,0.0006956]
[1745343641204,1.21044603,91245.0,91244.0,0.0016956]
[1745343641616,1.21744603,91245.0,91244.0,0.0016956]
[1745343642051,1.21044603,91245.0,91244.0,0.0016956]
[1745343642414,1.25467941,91245.0,91244.0,0.0026956]
[1745343643189,1.21944603,91245.0,91244.0,0.0026956]
[1745343647643,1.23398688,91245.0,91244.0,0.0026956]
[1745343649737,1.23398688,91245.0,91228.0,0.000848]
[1745343649738,0.21922853,91229.0,91228.0,0.000848]
[1745343649965,0.91660532,91229.0,91228.0,0.000848]
[1745343650185,1.13135737,91229.0,91228.0,0.000848]
[1745343650442,0.62277659,91226.0,91225.0,0.000848]
[1745343650679,0.57381745,91209.0,91200.0,0.35]
[1745343650932,0.68757339,91209.0,91200.0,0.35]
[1745343651154,0.78757339,91209.0,91200.0,0.35]
[1745343651373,0.83557339,91209.0,91200.0,0.35]
[1745343651600,0.8482091,91209.0,91200.0,0.35]
[1745343652223,0.8562091,91209.0,91200.0,0.35]
[1745343652430,0.8552091,91209.0,91200.0,0.35]
[1745343653251,0.8612091,91209.0,91208.0,0.001848]
[1745343653658,0.97496115,91209.0,91208.0,0.001848]
[1745343654260,0.98303696,91209.0,91208.0,0.001848]
[1745343655308,0.97836491,91209.0,91208.0,0.001848]
[1745343656342,0.21929343,91202.0,91200.0,0.10914251]
[1745343656573,0.62575594,91201.0,91200.0,0.10914251]
[1745343657557,0.62575594,91201.0,91175.0,0.01096791]
[1745343657735,0.1,91185.0,91183.0,0.01096695]
[1745343657950,0.20085594,91185.0,91184.0,0.21933497]
[1745343658133,0.21375594,91185.0,91184.0,0.21933497]
[1745343658948,0.22181121,91185.0,91183.0,0.001]
[1745343659153,0.22181121,91185.0,91184.0,0.00046018]
[1745343659416,0.1,91185.0,91184.0,0.00046018]
[1745343660025,0.1,91185.0,91184.0,0.00146018]
[1745343660775,0.21375594,91185.0,91184.0,0.00246018]
[1745343661469,0.2221458,91185.0,91184.0,0.00246018]
[1745343663433,0.44148012,91185.0,91184.0,0.00246018]
[1745343663643,0.52902139,91185.0,91184.0,0.00246018]
[1745343663861,0.94102139,91185.0,91184.0,0.00246018]
[1745343664094,0.85348012,91185.0,91184.0,0.00246018]
[1745343664518,1.20802097,91185.0,91184.0,0.00146018]
[1745343664679,1.29997756,91185.0,91184.0,0.00146018]
[1745343664877,1.29997756,91185.0,91184.0,0.00046018]
[1745343665322,1.21502097,91185.0,91184.0,0.00046018]
[1745343665548,0.6411458,91185.0,91184.0,0.00046018]
[1745343665746,0.7341458,91185.0,91184.0,0.00046018]
[1745343665926,0.63275218,91185.0,91184.0,0.00046018]
[1745343666123,0.85978331,91185.0,91184.0,0.00146018]
[1745343666404,1.20048012,91185.0,91184.0,0.00146018]
[1745343666813,1.20648012,91185.0,91184.0,0.00246018]
[1745343668357,1.43477302,91185.0,91184.0,0.00246018]
[1745343668571,1.32102097,91185.0,91184.0,0.00246018]
[1745343669002,1.41782097,91185.0,91184.0,0.00246018]
[1745343669639,1.40982097,91185.0,91184.0,0.00146018]
[1745343669847,0.85948012,91185.0,91184.0,0.00146018]
[1745343670052,0.6491458,91185.0,91184.0,0.00246018]
[1745343670363,0.86248012,91185.0,91184.0,0.00146018]
[1745343670771,0.86948012,91185.0,91184.0,0.00246018]
[1745343670977,0.6431458,91185.0,91184.0,0.00146018]
[1745343671185,0.6431458,91185.0,91184.0,0.00046018]
[1745343671186,0.6341458,91185.0,91184.0,0.00046018]
[1745343671428,0.6471458,91185.0,91184.0,0.00146018]
[1745343671954,0.6401458,91185.0,91184.0,0.00146018]
[1745343672168,0.6341458,91185.0,91184.0,0.00046018]
[1745343672326,0.6351458,91185.0,91184.0,0.00046018]
[1745343672539,0.6361458,91185.0,91184.0,0.00046018]
[1745343672873,0.6351458,91185.0,91184.0,0.00046018]
[1745343673117,0.6361458,91185.0,91184.0,0.00046018]
[1745343673685,0.6351458,91185.0,91184.0,0.00046018]
[1745343676181,0.6051758,91185.0,91184.0,0.00046018]
[1745343676783,0.6036758,91185.0,91184.0,0.00046018]
[1745343681323,0.82301012,91185.0,91184.0,0.00046018]
[1745343682235,0.6036758,91185.0,91184.0,0.00046018]
[1745343682769,0.6036758,91185.0,91184.0,0.2197969]
[1745343682990,0.6036758,91185.0,91184.0,0.00046018]
[1745343684786,0.71010063,91185.0,91184.0,0.00046018]
[1745343684982,0.71010063,91185.0,91150.0,0.38863047]
[1745343684983,0.01096719,91181.0,91157.0,0.21940169]
[1745343685237,0.1,91173.0,91164.0,0.01096924]
[1745343685383,0.11375594,91172.0,91167.0,0.21937714]
[1745343685586,0.11375594,91172.0,91167.0,0.23034602]
[1745343686084,0.11375594,91172.0,91168.0,0.21937422]
[1745343687322,0.11375594,91172.0,91169.0,0.21937261]
[1745343687658,0.11375594,91172.0,91160.0,0.21939444]
[1745343687874,0.1,91161.0,91156.0,0.0109702]
[1745343688070,0.1,91159.0,91157.0,0.21939984]
[1745343688282,0.11375594,91158.0,91148.0,0.23039415]
[1745343688487,0.11375594,91158.0,91153.0,0.21941117]
[1745343689027,0.11375594,91158.0,91154.0,0.01097044]
[1745343689235,0.11375594,91158.0,91153.0,0.01097056]
[1745343689437,0.11475594,91158.0,91155.0,0.21940649]
[1745343689646,0.11375594,91158.0,91157.0,0.21940169]
[1745343689845,0.11375594,91158.0,91148.0,0.01097116]
[1745343690024,0.11375594,91158.0,91152.0,0.21941259]
[1745343690863,0.11375594,91158.0,91154.0,0.21940757]
[1745343690864,0.21475594,91158.0,91154.0,0.21940757]
[1745343691192,0.21675594,91158.0,91154.0,0.21940757]
[1745343691345,0.22480105,91158.0,91152.0,0.21941354]
[1745343691546,0.22380105,91158.0,91153.0,0.21941095]
[1745343691727,0.22480105,91158.0,91156.0,0.21940331]
[1745343691935,0.22580105,91158.0,91156.0,0.21940331]
[1745343692158,0.22380105,91158.0,91156.0,0.21940409]
[1745343692541,0.22380105,91158.0,91157.0,0.21940169]
[1745343693166,0.22280105,91158.0,91157.0,0.21940169]
[1745343693551,0.22380105,91158.0,91157.0,0.21940169]
[1745343693758,0.102,91158.0,91157.0,0.21940169]
[1745343694114,0.101,91158.0,91157.0,0.26920169]
[1745343694327,0.102,91158.0,91157.0,0.26920169]
[1745343694742,0.102,91158.0,91157.0,0.27120169]
[1745343694950,0.101,91158.0,91157.0,0.27120169]
[1745343695258,0.101,91158.0,91157.0,0.26920169]
[1745343695467,0.102,91158.0,91157.0,0.27320169]
[1745343695665,0.002,91158.0,91157.0,0.32070169]
[1745343696605,0.003,91158.0,91157.0,0.32370169]
[1745343696806,0.002,91158.0,91157.0,0.32070169]
[1745343697152,0.003,91158.0,91157.0,0.32370169]
[1745343697337,0.002,91158.0,91157.0,0.31970169]
[1745343698239,0.002,91158.0,91157.0,0.32270169]
[1745343698909,0.002,91158.0,91157.0,0.31970169]
[1745343699266,0.003,91158.0,91157.0,0.32970169]
[1745343699476,0.002,91158.0,91157.0,0.32670169]
[1745343699719,0.004,91158.0,91157.0,0.32970169]
[1745343700402,0.002,91158.0,91157.0,0.32670169]
[1745343700819,0.003,91158.0,91157.0,0.32970169]
[1745343701443,0.002,91158.0,91157.0,0.31970169]
[1745343701615,0.003,91158.0,91157.0,0.32370169]
[1745343702275,0.002,91158.0,91157.0,0.32370169]
[1745343704237,0.00136961,91185.0,91184.0,0.21933672]
[1745343704624,0.00236961,91185.0,91184.0,0.21933672]
[1745343705891,0.00236961,91185.0,91184.0,0.26793001]
[1745343706132,0.00236961,91185.0,91184.0,0.26573672]
[1745343707071,0.00736961,91185.0,91184.0,0.27857775]
[1745343707508,0.00236961,91185.0,91184.0,0.27757775]
[1745343707718,0.00236961,91185.0,91184.0,0.27657775]
[1745343707964,0.00236961,91185.0,91184.0,0.27957775]
[1745343708184,0.00236961,91185.0,91184.0,0.28357775]
[1745343710004,0.00236961,91185.0,91184.0,0.23817775]
[1745343710466,0.00236961,91185.0,91184.0,0.22633672]
[1745343710668,0.00236961,91185.0,91184.0,0.007]
[1745343710669,0.11612555,91185.0,91184.0,0.007]
[1745343711025,0.70446339,91185.0,91184.0,0.007]
[1745343711214,0.69282796,91185.0,91184.0,0.007]
[1745343711428,0.89725987,91185.0,91184.0,0.003]
[1745343711569,0.89725987,91185.0,91166.0,0.21937815]
[1745343711570,0.01096731,91180.0,91166.0,0.21937815]
[1745343711776,0.11375594,91179.0,91166.0,0.23034903]
[1745343711977,0.52575594,91179.0,91166.0,0.23034903]
[1745343712173,0.52575594,91179.0,91166.0,0.21938003]
[1745343712378,0.52575594,91179.0,91167.0,0.21937762]
[1745343712622,0.52575594,91179.0,91167.0,0.2303465]
[1745343712915,0.52775594,91179.0,91170.0,0.21937024]
[1745343713359,0.52775594,91179.0,91172.0,0.2193646]
[1745343713534,0.52775594,91179.0,91174.0,0.21935997]
[1745343713733,0.52775594,91179.0,91173.0,0.21936276]
[1745343713894,0.52775594,91179.0,91172.0,0.21936528]
[1745343714294,0.52875594,91179.0,91172.0,0.21936528]
[1745343714489,0.52875594,91179.0,91175.0,0.21935686]
[1745343714696,0.52675594,91179.0,91178.0,0.21935115]
[1745343714907,0.52575594,91179.0,91178.0,0.21935115]
[1745343715110,0.53075594,91179.0,91178.0,0.21935115]
[1745343715551,0.52875594,91179.0,91178.0,0.21935115]
[1745343715766,0.53275594,91179.0,91178.0,0.21935115]
[1745343716435,0.52975594,91179.0,91178.0,0.21935115]
[1745343716809,0.416,91179.0,91178.0,0.21935115]
[1745343717185,0.421,91179.0,91178.0,0.22035115]
[1745343717530,0.009,91179.0,91178.0,0.22035115]
[1745343717737,0.004,91179.0,91178.0,0.21935115]
[1745343717936,0.008,91179.0,91178.0,0.21935115]
[1745343720608,0.008,91179.0,91176.0,0.21935366]
[1745343720959,0.008,91179.0,91167.0,0.21937617]
[1745343720960,0.1,91164.0,91161.0,0.0109696]
[1745343721195,0.1,91172.0,91166.0,0.21937915]
[1745343721399,0.1,91163.0,91152.0,0.01097068]
[1745343721601,0.1,91163.0,91155.0,0.01097032]
[1745343721602,0.11375594,91162.0,91155.0,0.01097032]
[1745343721846,0.11375594,91162.0,91158.0,0.21939919]
[1745343722025,0.11375594,91162.0,91161.0,0.003]
[1745343722477,0.11375594,91162.0,91159.0,0.21939682]
[1745343722662,0.11375594,91162.0,91158.0,0.21939928]
[1745343723072,0.11375594,91162.0,91157.0,0.23037172]
[1745343723333,0.11375594,91162.0,91158.0,0.21939827]
[1745343723538,0.11375594,91162.0,91158.0,0.23036823]
[1745343724071,0.11375594,91162.0,91155.0,0.21940479]
[1745343724296,0.1,91155.0,91147.0,0.0004243]
[1745343724571,0.11375594,91154.0,91147.0,0.0004243]
[1745343724719,0.11375594,91154.0,91147.0,0.21984866]
[1745343725123,0.11375594,91154.0,91147.0,0.0004243]
[1745343725331,0.21375594,91154.0,91147.0,0.0004243]
[1745343725778,0.22238668,91154.0,91147.0,0.0034243]
[1745343725973,0.22338668,91154.0,91147.0,0.0044243]
[1745343726455,0.22338668,91154.0,91150.0,0.01097092]
[1745343726658,0.22338668,91154.0,91149.0,0.21942094]
[1745343726967,0.22338668,91154.0,91147.0,0.0054243]
[1745343727347,0.01097092,91150.0,91147.0,0.0014243]
[1745343727499,0.11375594,91149.0,91147.0,0.0014243]
[1745343727720,0.21375594,91149.0,91147.0,0.0004243]
[1745343728535,0.412,91148.0,91147.0,0.0004243]
[1745343728749,0.62575594,91148.0,91147.0,0.0004243]
[1745343729318,0.62575594,91148.0,91141.0,0.22443785]
[1745343729542,0.11375594,91147.0,91141.0,0.005]
[1745343729755,0.21375594,91147.0,91141.0,0.005]
[1745343730207,0.21375594,91147.0,91141.0,0.22443848]
[1745343730394,0.21375594,91147.0,91144.0,0.21943298]
[1745343730601,0.21375594,91147.0,91146.0,0.21942817]
[1745343731461,0.17806694,91147.0,91146.0,0.21942817]
[1745343731638,0.1,91147.0,91146.0,0.21942817]
[1745343731848,0.101,91147.0,91146.0,0.21942817]
[1745343732061,0.102,91147.0,91143.0,0.23040668]
[1745343732367,0.21375594,91146.0,91143.0,0.01097176]
[1745343732532,0.21375594,91146.0,91142.0,0.01097189]
[1745343732710,0.21375594,91146.0,91142.0,0.23040968]
[1745343732921,0.21375594,91146.0,91141.0,0.005]
[1745343733144,0.21375594,91146.0,91142.0,0.21943717]
[1745343733492,0.21375594,91146.0,91142.0,0.01097189]
[1745343733646,0.21375594,91146.0,91143.0,0.23040578]
[1745343734165,0.21375594,91146.0,91141.0,0.23541161]
[1745343734377,0.21475594,91146.0,91143.0,0.01197176]
[1745343734603,0.21475594,91146.0,91145.0,0.21943057]
[1745343735242,0.101,91146.0,91145.0,0.21943057]
[1745343736125,0.101,91146.0,91145.0,0.26783057]
[1745343736559,0.001,91146.0,91145.0,0.26783057]
[1745343736902,0.002,91146.0,91145.0,0.26783057]
[1745343737308,0.001,91146.0,91145.0,0.26983057]
[1745343737741,0.002,91146.0,91145.0,0.27083057]
[1745343737947,0.002,91146.0,91145.0,0.27483057]
[1745343738237,0.001,91146.0,91145.0,0.27183057]
[1745343738469,0.001,91146.0,91145.0,0.27683057]
[1745343738661,0.002,91146.0,91145.0,0.27683057]
[1745343739719,0.002,91146.0,91145.0,0.22843057]
[1745343748088,0.002,91146.0,91145.0,0.009]
[1745343748314,0.002,91146.0,91145.0,0.22843057]
[1745343750861,0.001,91146.0,91145.0,0.22843057]
[1745343751267,0.002,91146.0,91145.0,0.22843057]
[1745343752260,0.11575594,91146.0,91145.0,0.009]
[1745343752464,0.79778411,91146.0,91145.0,0.009]
[1745343752679,0.89778411,91146.0,91145.0,0.009]
[1745343753071,0.67835594,91146.0,91145.0,0.009]
[1745343753274,0.67835594,91146.0,91145.0,0.004]
[1745343753520,0.67735594,91146.0,91145.0,0.004]
[1745343753730,0.01097164,91144.0,91141.0,0.005]
[1745343753930,0.21375594,91143.0,91141.0,0.005]
[1745343755358,0.21375594,91143.0,91135.0,0.01097273]
[1745343755932,0.21375594,91143.0,91132.0,0.21946078]
[1745343755933,0.21375594,91143.0,91134.0,0.01097285]
[1745343756064,0.21375594,91143.0,91141.0,0.001]
[1745343756266,0.21375594,91143.0,91134.0,0.01097285]
[1745343756521,0.21375594,91143.0,91124.0,0.21948096]
[1745343756522,0.412,91142.0,91126.0,0.23044987]
[1745343756860,0.11375594,91141.0,91135.0,0.003]
[1745343757064,0.12472795,91141.0,91130.0,0.01097333]
[1745343757214,0.11375594,91141.0,91130.0,0.23043962]
[1745343757544,0.12472795,91141.0,91134.0,0.004]
[1745343758128,0.11375594,91141.0,91134.0,0.004]
[1745343759145,0.01097213,91140.0,91128.0,0.01097357]
[1745343759487,0.01097213,91140.0,91130.0,0.009]
[1745343759488,0.01097273,91135.0,91130.0,0.009]